bitfinex-derivatives/quotes_BTCF0:USTF0_20250722
["timestamp","ask_amount","ask_price","bid_price","bid_amount"]
[1753176795523,0.98245465,118450.0,118440.0,0.258998]
[1753176795823,0.98245465,118450.0,118440.0,0.229658]
[1753176800615,0.98245465,118450.0,118440.0,0.220638]
[1753176801225,0.98245465,118450.0,118440.0,0.229538]
[1753176803324,0.98245465,118450.0,118440.0,0.3983294]
[1753176803531,0.98245465,118450.0,118440.0,0.299168]
[1753176803730,0.98245465,118450.0,118440.0,0.4679594]
[1753176803930,0.98191465,118450.0,118440.0,0.5666594]
[1753176805021,0.699636,118450.0,118440.0,0.5666594]
[1753176805322,0.698766,118450.0,118440.0,0.87914365]
[1753176805523,0.0012,118450.0,118440.0,0.87914365]
[1753176805723,0.0012,118450.0,118440.0,1.58994365]
[1753176806236,0.0012,118450.0,118440.0,1.23994365]
[1753176806735,0.1699772,118450.0,118440.0,1.23994365]
[1753176807236,0.2257172,118450.0,118440.0,0.957665]
[1753176807431,0.2687172,118450.0,118440.0,1.23994365]
[1753176808537,0.3340572,118450.0,118440.0,1.23994365]
[1753176809839,0.2257172,118450.0,118440.0,1.23994365]
[1753176810437,0.1699772,118450.0,118440.0,1.23994365]
[1753176810633,0.2257172,118450.0,118440.0,0.87914365]
[1753176810939,0.2257172,118450.0,118440.0,1.23994365]
[1753176812642,0.1699772,118450.0,118440.0,1.23994365]
[1753176814642,0.1699772,118450.0,118440.0,0.957665]
[1753176814943,0.2257172,118450.0,118440.0,1.23994365]
[1753176816030,0.3340572,118450.0,118440.0,1.23994365]
[1753176816536,0.3340572,118450.0,118440.0,0.957665]
[1753176816736,0.3340572,118450.0,118440.0,1.23994365]
[1753176817436,0.2257172,118450.0,118440.0,1.23994365]
[1753176817743,0.1699772,118450.0,118440.0,1.20973805]
[1753176818441,0.1699772,118450.0,118440.0,1.23240128]
[1753176818637,0.1699772,118450.0,118440.0,1.26260688]
[1753176818842,0.1699772,118450.0,118440.0,1.23994365]
[1753176819736,0.2257172,118450.0,118440.0,1.23994365]
[1753176820946,0.2687172,118450.0,118440.0,1.23994365]
[1753176821645,0.3340572,118450.0,118440.0,1.23994365]
[1753176823541,0.97713585,118450.0,118440.0,0.42053394]
[1753176824347,0.61633585,118450.0,118440.0,0.58932544]
[1753176825047,0.3340572,118450.0,118440.0,0.87914375]
[1753176825246,0.3340572,118450.0,118440.0,1.61994375]
[1753176825247,0.0012,118450.0,118440.0,1.61994375]
[1753176825549,0.0421919,118460.0,118450.0,0.2349472]
[1753176825749,0.0421919,118460.0,118450.0,0.9095887]
[1753176825947,0.1687723,118460.0,118450.0,1.07482887]
[1753176826249,0.3518787,118470.0,118460.0,0.2414129]
[1753176826453,0.2531387,118470.0,118460.0,1.00107155]
[1753176826747,0.2531387,118470.0,118460.0,1.0237344]
[1753176827144,0.3689938,118480.0,118470.0,0.1687487]
[1753176827345,0.3276938,118480.0,118470.0,1.00105735]
[1753176827746,0.3276938,118480.0,118470.0,0.7187787]
[1753176828145,0.4384738,118480.0,118470.0,0.7187787]
[1753176828346,0.4384738,118480.0,118470.0,0.3579787]
[1753176829050,0.72075245,118480.0,118470.0,0.3579787]
[1753176829847,1.08155245,118480.0,118470.0,0.3579787]
[1753176830150,1.08155245,118480.0,118470.0,0.5605167]
[1753176831954,1.08355245,118480.0,118470.0,0.5605167]
[1753176832250,1.08355245,118480.0,118470.0,0.333198]
[1753176832955,1.08355245,118480.0,118470.0,0.219838]
[1753176833457,1.08355245,118480.0,118470.0,0.228098]
[1753176833653,1.3658311,118480.0,118470.0,0.219838]
[1753176834451,0.8012738,118480.0,118470.0,0.202538]
[1753176834657,1.3658311,118480.0,118470.0,0.202538]
[1753176837259,1.3658311,118480.0,118470.0,0.219838]
[1753176837461,1.08355245,118480.0,118470.0,0.228098]
[1753176838159,1.3658311,118480.0,118470.0,0.228098]
[1753176838359,1.3658311,118480.0,118470.0,0.219838]
[1753176839655,1.08355245,118480.0,118470.0,0.219838]
[1753176840262,1.3658311,118480.0,118470.0,0.219838]
[1753176840753,1.3658311,118480.0,118470.0,0.255618]
[1753176840754,1.08355245,118480.0,118470.0,0.255618]
[1753176840961,1.08355245,118480.0,118470.0,0.5605167]
[1753176841156,0.8012738,118480.0,118470.0,0.5605167]
[1753176842056,1.08355245,118480.0,118470.0,0.391768]
[1753176842356,0.8014738,118480.0,118470.0,0.391768]
[1753176842557,1.08375245,118480.0,118470.0,0.391768]
[1753176842759,0.7613538,118480.0,118470.0,0.84279535]
[1753176842952,0.0192077,118480.0,118470.0,1.20359535]
[1753176843161,0.5912048,118500.0,118490.0,0.18923]
[1753176843358,1.11168355,118500.0,118490.0,0.3579502]
[1753176845059,1.11368355,118500.0,118490.0,0.3579502]
[1753176845259,1.11368355,118500.0,118490.0,0.5604882]
[1753176845962,0.8314049,118500.0,118490.0,0.5604882]
[1753176846159,1.11368355,118500.0,118490.0,0.5604882]
[1753176853069,1.11368355,118500.0,118490.0,0.228098]
[1753176853575,1.1922049,118500.0,118490.0,0.228098]
[1753176853878,1.47448355,118500.0,118490.0,0.228098]
[1753176854883,1.47448355,118500.0,118490.0,0.202538]
[1753176855880,1.47448355,118500.0,118490.0,0.218588]
[1753176860370,1.49177903,118500.0,118490.0,0.218588]
[1753176860576,1.49197903,118500.0,118490.0,0.218588]
[1753176862281,1.49197903,118500.0,118490.0,0.226638]
[1753176862471,1.49197903,118500.0,118490.0,0.3953582]
[1753176863276,1.49197903,118500.0,118490.0,0.226638]
[1753176863478,1.49197903,118500.0,118490.0,0.3953582]
[1753176863684,1.49197903,118500.0,118490.0,0.4242482]
[1753176863983,0.77037903,118500.0,118490.0,0.4659182]
[1753176864178,1.13117903,118500.0,118490.0,0.297198]
[1753176864381,1.13117903,118500.0,118490.0,0.4659182]
[1753176864581,1.13117903,118500.0,118490.0,0.255528]
[1753176864780,1.13117903,118500.0,118490.0,0.226638]
[1753176866587,1.13117903,118500.0,118490.0,0.202538]
[1753176866779,0.1687202,118490.0,118480.0,0.03868703]
[1753176866989,0.97169885,118490.0,118480.0,0.03868703]
[1753176867983,0.97169885,118490.0,118480.0,0.10583067]
[1753176868384,0.97269885,118490.0,118480.0,0.10583067]
[1753176868584,0.1687345,118480.0,118470.0,0.04626704]
[1753176868783,0.97171315,118480.0,118470.0,0.01605]
[1753176869580,0.1687487,118470.0,118460.0,0.07695182]
[1753176869787,0.97172735,118470.0,118460.0,0.04673478]
[1753176869987,0.97172735,118470.0,118460.0,0.21549768]
[1753176870187,0.6894487,118470.0,118460.0,0.28605768]
[1753176870394,0.97172735,118470.0,118460.0,0.28605768]
[1753176870590,0.97172735,118470.0,118460.0,0.11729478]
[1753176870786,0.97172735,118470.0,118460.0,0.28605768]
[1753176870988,0.97172735,118470.0,118460.0,0.52723568]
[1753176871287,0.97172735,118470.0,118460.0,0.58786568]
[1753176871486,0.97172735,118470.0,118460.0,0.41910278]
[1753176871686,0.97172735,118470.0,118460.0,0.59544794]
[1753176871887,0.97172735,118470.0,118460.0,0.36805504]
[1753176872088,0.97172735,118470.0,118460.0,0.36905504]
[1753176872294,0.97172735,118470.0,118460.0,0.53781794]
[1753176872494,0.97172735,118470.0,118460.0,0.36905504]
[1753176872686,0.97172735,118470.0,118460.0,0.28774504]
[1753176872990,0.97172735,118470.0,118460.0,0.45650794]
[1753176873389,0.97172735,118470.0,118460.0,0.49817794]
[1753176873787,0.97172735,118470.0,118460.0,0.53581794]
[1753176874290,0.97172735,118470.0,118460.0,0.53481794]
[1753176874491,0.97272735,118470.0,118460.0,0.53481794]
[1753176875096,0.97272735,118470.0,118460.0,0.36605504]
[1753176875296,0.97272735,118470.0,118460.0,0.5046009]
[1753176875795,0.97272735,118470.0,118460.0,0.53481794]
[1753176875997,0.6904487,118470.0,118460.0,0.53481794]
[1753176876198,0.97272735,118470.0,118460.0,0.53481794]
[1753176876398,0.97272735,118470.0,118460.0,0.5046009]
[1753176876598,0.97272735,118470.0,118460.0,0.59344794]
[1753176877099,0.6904487,118470.0,118460.0,0.59344794]
[1753176878004,0.6904487,118470.0,118460.0,0.5632309]
[1753176878898,0.6904487,118470.0,118460.0,0.42468504]
[1753176879102,0.97272735,118470.0,118460.0,0.42468504]
[1753176879901,0.97272735,118470.0,118460.0,0.59344794]
[1753176880496,0.61192735,118470.0,118460.0,0.59344794]
[1753176880698,0.97272735,118470.0,118460.0,0.59344794]
[1753176881004,0.6266187,118470.0,118460.0,0.87572659]
[1753176881195,0.5861187,118470.0,118460.0,0.87572659]
[1753176882096,0.2253187,118470.0,118460.0,0.87572659]
[1753176882301,0.1699487,118470.0,118460.0,1.25161795]
[1753176882501,0.1689487,118470.0,118460.0,1.25161795]
[1753176882705,0.1689487,118470.0,118460.0,1.25261795]
[1753176883101,0.1689487,118470.0,118460.0,1.00052754]
[1753176883298,0.2243187,118470.0,118460.0,0.63972787]
[1753176883603,0.2648187,118470.0,118460.0,0.63972787]
[1753176885311,0.1689487,118470.0,118460.0,0.92200652]
[1753176885510,0.1689487,118470.0,118460.0,1.28280652]
[1753176885709,0.1689487,118470.0,118460.0,1.25261795]
[1753176886413,0.1689487,118470.0,118460.0,0.9703393]
[1753176886610,0.1689487,118470.0,118460.0,1.25261795]
[1753176886811,0.2244487,118470.0,118460.0,1.25261795]
[1753176887012,0.1689487,118470.0,118460.0,1.25261795]
[1753176888212,0.2244487,118470.0,118460.0,1.25261795]
[1753176889010,0.2911087,118470.0,118460.0,0.89181795]
[1753176889312,0.3357187,118470.0,118460.0,0.6095393]
[1753176890511,0.3357187,118470.0,118460.0,0.63973157]
[1753176891112,0.3357187,118470.0,118460.0,0.6095393]
[1753176892909,0.3357187,118470.0,118460.0,0.9703393]
[1753176894015,0.3357187,118470.0,118460.0,0.6095393]
[1753176895013,0.61799735,118470.0,118460.0,0.6095393]
[1753176895415,0.97879735,118470.0,118460.0,0.5122693]
[1753176895806,0.97879735,118470.0,118460.0,0.54248812]
[1753176896206,0.97979735,118470.0,118460.0,0.54148812]
[1753176896608,0.97979735,118470.0,118460.0,0.58103812]
[1753176896811,0.6975187,118470.0,118460.0,0.58103812]
[1753176897009,0.97979735,118470.0,118460.0,0.58103812]
[1753176897619,0.97979735,118470.0,118460.0,0.5809463]
[1753176898118,0.97979735,118470.0,118460.0,0.5356379]
[1753176898516,0.97979735,118470.0,118460.0,0.4544179]
[1753176898715,0.97979735,118470.0,118460.0,0.4255279]
[1753176898909,0.97979735,118470.0,118460.0,0.256765]
[1753176899115,0.97979735,118470.0,118460.0,0.4255279]
[1753176900415,0.97979735,118470.0,118460.0,0.4542379]
[1753176900614,0.97979735,118470.0,118460.0,0.5915479]
[1753176900818,0.3367187,118470.0,118460.0,0.91913495]
[1753176901019,0.3367187,118470.0,118460.0,0.88891613]
[1753176901723,0.3367187,118470.0,118460.0,0.60663748]
[1753176902924,0.3367187,118470.0,118460.0,0.88891613]
[1753176903424,0.3367187,118470.0,118460.0,0.60663748]
[1753176905221,0.3367187,118470.0,118460.0,0.88891613]
[1753176905923,0.3367187,118470.0,118460.0,0.60663748]
[1753176908220,0.3367187,118470.0,118460.0,0.88891613]
[1753176909024,0.3367187,118470.0,118460.0,1.24971613]
[1753176909222,0.0567,118470.0,118460.0,1.61971613]
[1753176909423,0.1699486,118470.0,118460.0,1.24971613]
[1753176909822,0.2254486,118470.0,118460.0,1.24971613]
[1753176910224,0.3367186,118470.0,118460.0,1.24971613]
[1753176912129,0.3367186,118470.0,118460.0,0.96743748]
[1753176912328,0.3367186,118470.0,118460.0,1.24971613]
[1753176915929,0.3367186,118470.0,118460.0,0.96743748]
[1753176916129,0.3367186,118470.0,118460.0,1.24971613]
[1753176916528,0.2921086,118470.0,118460.0,1.24971613]
[1753176916732,0.2254486,118470.0,118460.0,1.24971613]
[1753176917427,0.0567,118470.0,118460.0,1.24971613]
[1753176917628,0.2254486,118470.0,118460.0,1.24971613]
[1753176917828,0.0567,118470.0,118460.0,1.24971613]
[1753176918029,0.0012,118470.0,118460.0,1.24971613]
[1753176918431,0.1699486,118470.0,118460.0,1.24971613]
[1753176918734,0.1699486,118470.0,118460.0,1.23464852]
[1753176918936,0.2271986,118470.0,118460.0,1.23464852]
[1753176919234,0.0012,118470.0,118460.0,1.23464852]
[1753176919435,0.1699486,118470.0,118460.0,1.23464852]
[1753176919636,0.0012,118470.0,118460.0,1.56464852]
[1753176919840,0.0012,118470.0,118460.0,1.23464852]
[1753176921339,0.0012,118470.0,118460.0,1.61464852]
[1753176921539,0.01706244,118480.0,118470.0,0.2435386]
[1753176921736,0.01706244,118480.0,118470.0,0.99849725]
[1753176921940,0.01706244,118480.0,118470.0,1.32849725]
[1753176922731,0.01706244,118480.0,118470.0,0.7162186]
[1753176922938,0.01706244,118480.0,118470.0,0.99849725]
[1753176924430,0.02229548,118500.0,118490.0,0.01627]
[1753176924637,0.3339959,118500.0,118490.0,0.63766875]
[1753176924836,0.3339959,118500.0,118490.0,0.37442405]
[1753176925242,0.61627455,118500.0,118490.0,0.57696205]
[1753176925446,0.6947959,118500.0,118490.0,0.57696205]
[1753176925745,0.97707455,118500.0,118490.0,0.57696205]
[1753176927245,0.97707455,118500.0,118490.0,0.52299205]
[1753176927446,0.97707455,118500.0,118490.0,0.48135205]
[1753176927648,0.6947959,118500.0,118490.0,0.48135205]
[1753176927947,0.97707455,118500.0,118490.0,0.48135205]
[1753176928249,0.97707455,118500.0,118490.0,0.52299205]
[1753176928848,0.97707455,118500.0,118490.0,0.57589224]
[1753176929049,0.97707455,118500.0,118490.0,0.54565145]
[1753176930049,0.97707455,118500.0,118490.0,0.46681145]
[1753176930250,0.97707455,118500.0,118490.0,0.29809135]
[1753176930652,0.97707455,118500.0,118490.0,0.2497874]
[1753176930847,0.97707455,118500.0,118490.0,0.2414674]
[1753176931245,0.97707455,118500.0,118490.0,0.4101875]
[1753176931442,0.97707455,118500.0,118490.0,0.2414674]
[1753176931645,0.97707455,118500.0,118490.0,0.4101875]
[1753176931846,0.97707455,118500.0,118490.0,0.2414674]
[1753176932050,0.97707455,118500.0,118490.0,0.4185075]
[1753176932449,0.97707455,118500.0,118490.0,0.4894175]
[1753176933452,0.97707455,118500.0,118490.0,0.3206974]
[1753176933644,0.97707455,118500.0,118490.0,0.2790574]
[1753176933849,0.97707455,118500.0,118490.0,0.4477775]
[1753176935250,0.97707455,118500.0,118490.0,0.4894175]
[1753176935650,0.6947959,118500.0,118490.0,0.4894175]
[1753176935851,0.97707455,118500.0,118490.0,0.4894175]
[1753176938056,0.97707455,118500.0,118490.0,0.4477775]
[1753176938260,0.97727455,118500.0,118490.0,0.2790574]
[1753176938760,0.97727455,118500.0,118490.0,0.4477775]
[1753176939153,0.97727455,118500.0,118490.0,0.4894175]
[1753176941659,0.97727455,118500.0,118490.0,0.5805875]
[1753176941862,0.6949959,118500.0,118490.0,0.86286615]
[1753176942661,0.3341959,118500.0,118490.0,1.22366615]
[1753176943260,0.3341959,118500.0,118490.0,0.9413875]
[1753176944357,0.2585559,118500.0,118490.0,0.9413875]
[1753176944562,0.2311559,118500.0,118490.0,0.9413875]
[1753176944762,0.1739059,118500.0,118490.0,1.22366615]
[1753176945060,0.1739059,118500.0,118490.0,1.23124754]
[1753176945260,0.1739059,118500.0,118490.0,1.25389137]
[1753176945559,0.0052,118500.0,118490.0,1.54124754]
[1753176945864,0.0052,118500.0,118490.0,1.63388689]
[1753176946169,0.0172478,118510.0,118500.0,0.2401159]
[1753176946358,0.1859394,118510.0,118500.0,1.38555287]
[1753176946559,0.0172478,118510.0,118500.0,1.38555287]
[1753176946958,0.0172478,118510.0,118500.0,1.36555287]
[1753176947165,0.1859394,118510.0,118500.0,1.34555287]
[1753176947560,0.1859394,118510.0,118500.0,1.01555287]
[1753176947764,0.1859394,118510.0,118500.0,1.39555287]
[1753176948360,0.366878,118520.0,118510.0,0.2401016]
[1753176948560,0.366878,118520.0,118510.0,0.63210025]
[1753176948760,0.323728,118520.0,118510.0,0.99290025]
[1753176949164,0.366878,118520.0,118510.0,0.99290025]
[1753176949566,0.366878,118520.0,118510.0,1.06153653]
[1753176949762,0.3880764,118520.0,118510.0,1.06153653]
[1753176949963,0.3449264,118520.0,118510.0,1.06153653]
[1753176950164,0.3449264,118520.0,118510.0,1.26407453]
[1753176950363,0.2815564,118520.0,118510.0,1.26407453]
[1753176951071,0.2815564,118520.0,118510.0,1.27236474]
[1753176951757,0.2815564,118520.0,118510.0,1.61236474]
[1753176952162,0.2815564,118520.0,118510.0,1.27236474]
[1753176952769,0.2815564,118520.0,118510.0,1.64236474]
[1753176953862,0.2815564,118520.0,118510.0,1.27236474]
[1753176954062,0.3247064,118520.0,118510.0,0.99008609]
[1753176954257,0.3880764,118520.0,118510.0,1.27236474]
[1753176955564,0.2815564,118520.0,118510.0,1.27236474]
[1753176956968,0.3247064,118520.0,118510.0,0.99008609]
[1753176957168,0.3880764,118520.0,118510.0,0.99008609]
[1753176957372,0.3880764,118520.0,118510.0,1.27236474]
[1753176957762,0.3710296,118520.0,118510.0,1.27236474]
[1753176958068,0.3710296,118520.0,118510.0,1.32524385]
[1753176958262,0.3710296,118520.0,118510.0,1.34391279]
[1753176958568,0.3278796,118520.0,118510.0,1.34391279]
[1753176959666,0.2645096,118520.0,118510.0,1.34391279]
[1753176960770,0.2645096,118520.0,118510.0,1.06163414]
[1753176960962,0.2645096,118520.0,118510.0,1.34391279]
[1753176961168,0.3710296,118520.0,118510.0,1.34391279]
[1753176962370,0.3710296,118520.0,118510.0,0.98311279]
[1753176962874,0.3710296,118520.0,118510.0,0.952872]
[1753176962875,0.2857097,118520.0,118510.0,0.952872]
[1753176963069,0.2859097,118520.0,118510.0,0.98311279]
[1753176963275,0.2225397,118520.0,118510.0,0.952872]
[1753176963575,0.2225397,118520.0,118510.0,0.98311279]
[1753176963973,0.2656897,118520.0,118510.0,0.98311279]
[1753176964178,0.3290597,118520.0,118510.0,0.952872]
[1753176964672,0.16037,118520.0,118510.0,0.952872]
[1753176964975,0.05385,118520.0,118510.0,0.98311279]
[1753176965178,0.2225274,118520.0,118510.0,0.952872]
[1753176965474,0.05385,118520.0,118510.0,0.98311279]
[1753176965676,0.05385,118520.0,118510.0,0.96047447]
[1753176966076,0.2225274,118520.0,118510.0,0.96047447]
[1753176966378,0.2225274,118520.0,118510.0,0.67819582]
[1753176966575,0.2656774,118520.0,118510.0,0.96047447]
[1753176966777,0.2656774,118520.0,118510.0,1.67127447]
[1753176966778,0.0002,118520.0,118510.0,1.67127447]
[1753176966976,0.0002,118520.0,118510.0,1.34390661]
[1753176967177,0.0002,118520.0,118510.0,1.64127447]
[1753176967573,0.0968,118550.0,118540.0,0.4340979]
[1753176967772,0.2222847,118550.0,118540.0,0.75853765]
[1753176968277,0.3288047,118550.0,118540.0,0.75853765]
[1753176968477,0.16017,118550.0,118540.0,0.75853765]
[1753176968680,0.3288048,118550.0,118540.0,0.75853765]
[1753176970278,0.3288048,118550.0,118540.0,0.96107565]
[1753176970979,0.3288048,118550.0,118540.0,0.91891455]
[1753176971369,0.16017,118550.0,118540.0,1.27971455]
[1753176971874,0.3288047,118550.0,118540.0,1.27971455]
[1753176972577,0.3288047,118550.0,118540.0,0.9974359]
[1753176972777,0.3288047,118550.0,118540.0,1.27971455]
[1753176974968,0.11702,118550.0,118540.0,0.9974359]
[1753176975169,0.11702,118550.0,118540.0,1.27971455]
[1753176976379,0.15698,118550.0,118540.0,1.27971455]
[1753176976776,0.3256148,118550.0,118540.0,1.27971455]
[1753176978672,0.3256148,118550.0,118540.0,0.91891455]
[1753176978879,0.97618345,118550.0,118540.0,0.61709887]
[1753176979074,0.98029345,118550.0,118540.0,0.421807]
[1753176979280,0.98029345,118550.0,118540.0,0.395497]
[1753176980082,0.3331048,118550.0,118540.0,0.555767]
[1753176980475,0.15698,118550.0,118540.0,0.555767]
[1753176980673,0.15698,118550.0,118540.0,0.83804565]
[1753176980876,0.08201,118550.0,118540.0,1.22146842]
[1753176981079,0.05365,118550.0,118540.0,1.22146842]
[1753176981880,0.12842,118550.0,118540.0,1.22146842]
[1753176982073,0.15671,118550.0,118540.0,1.22146842]
[1753176982774,0.3253448,118550.0,118540.0,1.22146842]
[1753176983376,0.3253448,118550.0,118540.0,0.93918977]
[1753176983583,0.15671,118550.0,118540.0,0.93918977]
[1753176983782,0.15671,118550.0,118540.0,1.22146842]
[1753176984584,0.05365,118550.0,118540.0,1.22146842]
[1753176984784,0.05385,118550.0,118540.0,1.22146842]
[1753176985388,0.0002,118550.0,118540.0,1.22146842]
[1753176985876,0.05321,118550.0,118540.0,1.22146842]
[1753176986788,0.09317,118550.0,118540.0,1.22146842]
[1753176987285,0.0002,118550.0,118540.0,1.25170921]
[1753176987691,0.2218448,118550.0,118540.0,1.25170921]
[1753176987988,0.3249048,118550.0,118540.0,1.22146842]
[1753176988182,0.11631,118550.0,118540.0,1.22146842]
[1753176988388,0.05321,118550.0,118540.0,1.25170921]
[1753176988890,0.2618048,118550.0,118540.0,1.25170921]
[1753176989090,0.3249048,118550.0,118540.0,1.25170921]
[1753176989290,0.15627,118550.0,118540.0,1.25170921]
[1753176989480,0.11631,118550.0,118540.0,1.25170921]
[1753176989686,0.11631,118550.0,118540.0,0.96943056]
[1753176989990,0.11631,118550.0,118540.0,1.25170921]
[1753176990490,0.3249048,118550.0,118540.0,0.96943056]
[1753176990692,0.3249048,118550.0,118540.0,1.25170921]
[1753176990890,0.3249048,118550.0,118540.0,1.22908644]
[1753176991785,0.15627,118550.0,118540.0,1.22908644]
[1753176992589,0.05321,118550.0,118540.0,1.22908644]
[1753176993087,0.05321,118550.0,118540.0,0.94680779]
[1753176993289,0.05321,118550.0,118540.0,1.22908644]
[1753176993489,0.3249048,118550.0,118540.0,1.22908644]
[1753176993791,0.15627,118550.0,118540.0,1.22908644]
[1753176994088,0.15627,118550.0,118540.0,0.94680779]
[1753176994287,0.3249048,118550.0,118540.0,1.22908644]
[1753176994689,0.15627,118550.0,118540.0,1.22908644]
[1753176995982,0.60718335,118550.0,118540.0,0.94680779]
[1753176996288,0.61353335,118550.0,118540.0,0.58600779]
[1753176996591,0.3352247,118550.0,118540.0,0.53016779]
[1753176996792,0.16262,118550.0,118540.0,0.58600779]
[1753176996993,0.16262,118550.0,118540.0,0.94680779]
[1753176997189,0.16262,118550.0,118540.0,0.63131619]
[1753176998395,0.16262,118550.0,118540.0,0.6010754]
[1753176998595,0.3312547,118550.0,118540.0,0.6010754]
[1753176998786,0.3312547,118550.0,118540.0,0.63129014]
[1753176999193,0.3312547,118550.0,118540.0,0.6010754]
[1753177000698,0.61353335,118550.0,118540.0,0.6010754]
[1753177001196,0.44489865,118550.0,118540.0,0.6010754]
[1753177001387,0.61353335,118550.0,118540.0,0.6010754]
[1753177001585,0.3312547,118550.0,118540.0,0.6010754]
[1753177001793,0.61353335,118550.0,118540.0,0.6010754]
[1753177001989,0.57357335,118550.0,118540.0,0.6010754]
[1753177002189,4.0,118580.0,118570.0,0.3535163]
[1753177002399,3.98291,118580.0,118570.0,1.36925569]
[1753177002594,3.98291,118580.0,118570.0,1.37680927]
[1753177002797,3.98291,118580.0,118570.0,1.39945071]
[1753177003102,3.98291,118580.0,118570.0,1.46844969]
[1753177003396,3.89177,118580.0,118570.0,1.46844969]
[1753177003592,3.83593,118580.0,118570.0,1.46844969]
[1753177003992,3.83593,118580.0,118570.0,1.11844969]
[1753177004188,3.89176,118580.0,118570.0,1.08823537]
[1753177004497,3.89176,118580.0,118570.0,1.42823537]
[1753177004698,3.89176,118580.0,118570.0,0.80595672]
[1753177005000,3.89176,118580.0,118570.0,1.43923537]
[1753177005196,3.89176,118580.0,118570.0,1.64177337]
[1753177005393,3.89176,118580.0,118570.0,1.65011955]
[1753177005898,3.89176,118580.0,118570.0,1.62747798]
[1753177006690,3.89176,118580.0,118570.0,1.65085789]
[1753177007194,3.89176,118580.0,118570.0,1.69603583]
[1753177007395,3.89176,118580.0,118570.0,1.34603583]
[1753177007792,4.115362,118580.0,118570.0,0.68628718]
[1753177007996,4.115362,118580.0,118570.0,0.96856583]
[1753177008301,4.115362,118580.0,118570.0,1.32936583]
[1753177009007,4.115362,118580.0,118570.0,1.31430088]
[1753177009703,4.115362,118580.0,118570.0,0.38587994]
[1753177009704,4.75844065,118580.0,118570.0,0.38587994]
[1753177009899,0.2396563,118570.0,118560.0,0.05269318]
[1753177010095,0.99434495,118570.0,118560.0,0.04594731]
[1753177010403,1.16302495,118570.0,118560.0,0.04594731]
[1753177010598,1.00267681,118570.0,118560.0,0.04594731]
[1753177010793,0.99434495,118570.0,118560.0,0.04594731]
[1753177011312,0.7120663,118570.0,118560.0,0.04594731]
[1753177011606,0.7120663,118570.0,118560.0,0.2446808]
[1753177012001,0.7120663,118570.0,118560.0,0.07607039]
[1753177012506,0.99434495,118570.0,118560.0,0.07607039]
[1753177012703,0.99534495,118570.0,118560.0,0.07607039]
[1753177013008,0.99534495,118570.0,118560.0,0.27860839]
[1753177013304,0.99534495,118570.0,118560.0,0.2484954]
[1753177013503,0.99534495,118570.0,118560.0,0.22590512]
[1753177014904,0.7130663,118570.0,118560.0,0.22590512]
[1753177015099,0.99534495,118570.0,118560.0,0.22590512]
[1753177016705,0.99534495,118570.0,118560.0,0.202538]
[1753177017203,0.99534495,118570.0,118540.0,0.19123878]
[1753177017204,0.2396847,118550.0,118540.0,0.19123878]
[1753177017400,0.63357335,118550.0,118540.0,0.19123878]
[1753177017604,0.7120947,118550.0,118540.0,0.02259028]
[1753177017803,0.2396989,118540.0,118530.0,0.73294406]
[1753177018003,0.7121089,118540.0,118530.0,0.76082406]
[1753177018711,0.7121089,118540.0,118530.0,0.75249177]
[1753177018906,0.7123089,118540.0,118530.0,0.74496644]
[1753177020396,0.7133089,118540.0,118530.0,0.94750444]
[1753177020600,0.7133089,118540.0,118530.0,0.98871444]
[1753177021010,0.7133089,118540.0,118530.0,0.70643579]
[1753177021208,0.7133089,118540.0,118530.0,0.98871444]
[1753177021401,0.99558755,118540.0,118530.0,0.56222804]
[1753177021899,0.99558755,118540.0,118530.0,0.416875]
[1753177022105,0.99558755,118540.0,118530.0,0.5855382]
[1753177022502,0.7133089,118540.0,118530.0,0.5855382]
[1753177023005,0.7133089,118540.0,118530.0,0.6267482]
[1753177023400,0.7133089,118540.0,118530.0,0.5855382]
[1753177023600,0.7133089,118540.0,118530.0,0.6267482]
[1753177023807,0.7133089,118540.0,118530.0,0.458085]
[1753177024009,0.7133089,118540.0,118530.0,0.5855382]
[1753177024209,0.99558755,118540.0,118530.0,0.5855382]
[1753177024405,0.7133089,118540.0,118530.0,0.5855382]
[1753177024607,0.7133089,118540.0,118530.0,0.4477282]
[1753177025013,0.721704,118540.0,118530.0,0.4477282]
[1753177025307,0.7133089,118540.0,118530.0,0.5576582]
[1753177025710,0.99558755,118540.0,118530.0,0.5855382]
[1753177025908,0.7133089,118540.0,118530.0,0.5855382]
[1753177026302,0.18386,118540.0,118530.0,0.90902685]
[1753177026502,0.06803,118540.0,118530.0,1.26982685]
[1753177026809,0.04081,118540.0,118530.0,1.26982685]
[1753177027108,0.0012,118540.0,118530.0,1.62982685]
[1753177028113,0.0012,118540.0,118530.0,1.26982685]
[1753177028314,0.0012,118540.0,118530.0,1.63982685]
[1753177028612,0.0002,118540.0,118530.0,1.64182685]
[1753177029416,0.0002,118540.0,118530.0,0.9895482]
[1753177029608,0.0002,118540.0,118530.0,1.58664891]
[1753177029810,0.0002,118540.0,118530.0,1.58764891]
[1753177030915,0.0002,118540.0,118530.0,1.60764891]
[1753177031115,0.0002,118540.0,118530.0,1.55764891]
[1753177032614,0.0002,118540.0,118530.0,1.22764891]
[1753177033516,0.2084589,118540.0,118530.0,1.22764891]
[1753177033818,0.03981,118540.0,118530.0,1.22764891]
[1753177034516,0.03981,118540.0,118530.0,1.22664891]
[1753177035116,0.3515089,118540.0,118530.0,1.22664891]
[1753177035815,0.3345189,118540.0,118530.0,1.22464891]
[1753177036119,0.3519689,118540.0,118530.0,0.86384891]
[1753177037417,0.3529689,118540.0,118530.0,0.86384891]
[1753177038417,0.3529689,118540.0,118530.0,1.28534984]
[1753177038616,0.3529689,118540.0,118530.0,0.82263891]
[1753177039112,0.3529689,118540.0,118530.0,0.60106119]
[1753177039312,0.3529689,118540.0,118530.0,0.82263891]
[1753177039717,0.3529689,118540.0,118530.0,0.88333984]
[1753177039921,0.63524755,118540.0,118530.0,0.29458799]
[1753177040120,0.3529689,118540.0,118530.0,0.45520119]
[1753177040416,0.63524755,118540.0,118530.0,0.45520119]
[1753177041320,0.3529689,118540.0,118530.0,0.51210119]
[1753177041517,0.63524755,118540.0,118530.0,0.45520119]
[1753177041716,0.3355189,118540.0,118530.0,0.87407891]
[1753177042219,0.3529689,118540.0,118530.0,0.87407891]
[1753177042817,0.3529689,118540.0,118530.0,0.59180026]
[1753177043018,0.3529689,118540.0,118530.0,0.87407891]
[1753177044511,0.3529689,118540.0,118530.0,0.93477984]
[1753177045818,0.18432,118540.0,118530.0,0.91148078]
[1753177046918,0.3529689,118540.0,118530.0,0.91148078]
[1753177047114,0.3529689,118540.0,118530.0,0.62920213]
[1753177047317,0.3529689,118540.0,118530.0,0.91148078]
[1753177047921,0.18432,118540.0,118530.0,1.27228078]
[1753177048119,0.3529689,118540.0,118530.0,1.27228078]
[1753177048623,0.3519689,118540.0,118530.0,1.27228078]
[1753177048817,0.3509689,118540.0,118530.0,0.91148078]
[1753177049013,0.18232,118540.0,118530.0,0.91148078]